fUSD/lending_fUSD_20260516
["ID","MTS","AMOUNT","RATE_DAILY","PERIOD"]
[422386089,1778919181000,-177.8395161,0.000409,30]
[422386090,1778919181000,-9581.84077881,0.000409,30]
[422386107,1778919181000,-506.21961744,0.00040995,31]
[422386091,1778919181000,-100000.0,0.00040901,120]
[422386106,1778919181000,-287.1,0.0004099,120]
[422386104,1778919181000,-15342.78793177,0.0004099,60]
[422386105,1778919181000,-171.08,0.0004099,120]
[422386102,1778919181000,-150.5,0.0004098,120]
[422386100,1778919181000,-150.5,0.0004097,120]
[422386101,1778919181000,-151.0,0.00040977,60]
[422386103,1778919181000,-250.0,0.00040985,87]
[422386097,1778919181000,-250.0,0.00040937,86]
[422386098,1778919181000,-250.0,0.00040946,86]
[422386096,1778919181000,-250.0,0.00040926,86]
[422386094,1778919181000,-7894.72,0.00040903,120]
[422386095,1778919181000,-100000.0,0.00040904,120]
[422386092,1778919181000,-100000.0,0.00040902,120]
[422386093,1778919181000,-100000.0,0.00040903,120]
[422386099,1778919181000,-53038.68760644,0.00040962,60]
[422386118,1778919182000,-12963.0,0.00041,120]
[422386122,1778919182000,-500.0,0.00041,45]
[422386121,1778919182000,-131863.81652845,0.00041,120]
[422386119,1778919182000,-408.18537323,0.00041,30]
[422386120,1778919182000,-232.44229136,0.00041,120]
[422386117,1778919182000,-254671.720094,0.00041,30]
[422386114,1778919182000,-554.07995069,0.00041,60]
[422386123,1778919182000,-500.0,0.00041,45]
[422386113,1778919182000,-161.0,0.00041,30]
[422386112,1778919182000,-259.49234213,0.00041,30]
[422386111,1778919182000,-713.33853557,0.00041,120]
[422386110,1778919182000,-417.11700531,0.00041,120]
[422386109,1778919182000,-218804.79055449,0.00041,120]
[422386108,1778919182000,-50000.0,0.00041,49]
[422386115,1778919182000,-162.0,0.00041,120]
[422386125,1778919182000,-500.0,0.00041,45]
[422386116,1778919182000,-41533.47838679,0.00041,30]
[422386126,1778919182000,-500.0,0.00041,45]
[422386127,1778919182000,-500.0,0.00041,45]
[422386140,1778919182000,-1000.0,0.00041,120]
[422386139,1778919182000,-11523.79976458,0.00041,30]
[422386136,1778919182000,-701454.02703534,0.00041,120]
[422386138,1778919182000,-1000.0,0.00041,120]
[422386137,1778919182000,-64743.4171376,0.00041,120]
[422386135,1778919182000,-500.0,0.00041,45]
[422386134,1778919182000,-500.0,0.00041,45]
[422386142,1778919182000,-700.0,0.00041,120]
[422386133,1778919182000,-500.0,0.00041,45]
[422386141,1778919182000,-471.8929496,0.00041,120]
[422386129,1778919182000,-500.0,0.00041,45]
[422386128,1778919182000,-500.0,0.00041,45]
[422386124,1778919182000,-500.0,0.00041,45]
[422386130,1778919182000,-500.0,0.00041,45]
[422386132,1778919182000,-500.0,0.00041,45]
[422386131,1778919182000,-500.0,0.00041,45]
[422386154,1778919183000,-910060.86,0.00041,120]
[422386155,1778919183000,-1000000.0,0.00041,120]
[422386153,1778919183000,-1000000.0,0.00041,120]
[422386156,1778919183000,-1000000.0,0.00041,120]
[422386151,1778919183000,-298797.02566616,0.00041,30]
[422386150,1778919183000,-11460.43682331,0.00041,120]
[422386148,1778919183000,-275.17695348,0.00041,30]
[422386149,1778919183000,-1000.0,0.00041,120]
[422386147,1778919183000,-1000.0,0.00041,120]
[422386143,1778919183000,-1000.0,0.00041,120]
[422386145,1778919183000,-1000.0,0.00041,120]
[422386144,1778919183000,-1000.0,0.00041,120]
[422386152,1778919183000,-1369.24852674,0.00041,30]
[422386157,1778919183000,-422500.0,0.00041,120]
[422386146,1778919183000,-1000.0,0.00041,120]
[422386159,1778919183000,-341269.0,0.00041,120]
[422386160,1778919183000,-1000000.0,0.00041,120]
[422386171,1778919183000,-1000000.0,0.00041,120]
[422386169,1778919183000,-1000000.0,0.00041,120]
[422386170,1778919183000,-1000000.0,0.00041,120]
[422386168,1778919183000,-1000000.0,0.00041,120]
[422386167,1778919183000,-1000000.0,0.00041,120]
[422386172,1778919183000,-742472.43664267,0.00041,120]
[422386165,1778919183000,-1000000.0,0.00041,120]
[422386164,1778919183000,-1515425.0,0.00041,120]
[422386163,1778919183000,-1000000.53,0.00041,120]
[422386162,1778919183000,-1000000.0,0.00041,120]
[422386161,1778919183000,-1000000.0,0.00041,120]
[422386158,1778919183000,-1000000.0,0.00041,120]
[422386166,1778919183000,-1400000.0,0.00041,120]
[422386174,1778919198000,-156.62118371,0.00016438,30]
[422386173,1778919198000,-156.62118371,0.00016438,30]
[422386183,1778919199000,-411.6,0.00029169,30]
[422386184,1778919199000,-405.46,0.000307,30]
[422386181,1778919199000,-411.6,0.00028979,30]
[422386180,1778919199000,-411.6,0.00028883,30]
[422386177,1778919199000,-608.19,0.00026965,30]
[422386179,1778919199000,-411.6,0.00028788,30]
[422386178,1778919199000,-411.6,0.00028693,30]
[422386176,1778919199000,-191.63492433,0.00016438,30]
[422386175,1778919199000,-191.63492433,0.00016438,30]
[422386182,1778919199000,-411.6,0.00029074,30]
[422386185,1778919199000,-1745.19,0.000307,30]
[422386187,1778919199000,-304.91661939,0.00032,120]
[422386188,1778919199000,-502.6206691,0.00032,120]
[422386186,1778919199000,-1299.31,0.000307,30]
[422386197,1778919199000,-1745.19,0.0003581,30]
[422386195,1778919199000,-502.6206691,0.00035,120]
[422386194,1778919199000,-502.6206691,0.000339,120]
[422386196,1778919199000,-405.46,0.0003581,30]
[422386193,1778919199000,-1299.31,0.00033255,30]
[422386191,1778919199000,-405.46,0.00033255,30]
[422386189,1778919199000,-302.72465295,0.00032,120]
[422386190,1778919199000,-502.6206691,0.00033,120]
[422386192,1778919199000,-1745.19,0.00033255,30]
[422386204,1778919200000,-300.0,0.00039726,120]
[422386209,1778919200000,-300.0,0.00039726,120]
[422386208,1778919200000,-300.0,0.00039726,120]
[422386207,1778919200000,-300.0,0.00039726,120]
[422386206,1778919200000,-300.0,0.00039726,120]
[422386205,1778919200000,-300.0,0.00039726,120]
[422386200,1778919200000,-405.46,0.00038364,30]
[422386202,1778919200000,-1299.31,0.00038364,30]
[422386203,1778919200000,-203.14907457,0.00039,30]
[422386211,1778919200000,-300.0,0.00039726,120]
[422386199,1778919200000,-502.6206691,0.00036,120]
[422386198,1778919200000,-1299.31,0.0003581,30]
[422386201,1778919200000,-1745.19,0.00038364,30]
[422386210,1778919200000,-300.0,0.00039726,120]
[422386223,1778919200000,-300.0,0.00039726,120]
[422386213,1778919200000,-300.0,0.00039726,120]
[422386212,1778919200000,-300.0,0.00039726,120]
[422386225,1778919200000,-300.0,0.00039726,120]
[422386226,1778919200000,-300.0,0.00039726,120]
[422386224,1778919200000,-300.0,0.00039726,120]
[422386221,1778919200000,-300.0,0.00039726,120]
[422386220,1778919200000,-300.0,0.00039726,120]
[422386222,1778919200000,-300.0,0.00039726,120]
[422386218,1778919200000,-300.0,0.00039726,120]
[422386217,1778919200000,-300.0,0.00039726,120]
[422386216,1778919200000,-300.0,0.00039726,120]
[422386214,1778919200000,-300.0,0.00039726,120]
[422386215,1778919200000,-300.0,0.00039726,120]
[422386219,1778919200000,-300.0,0.00039726,120]
[422386234,1778919201000,-300.0,0.00039726,120]
[422386239,1778919201000,-500.0,0.00039999,31]
[422386238,1778919201000,-500.0,0.00039999,31]
[422386237,1778919201000,-500.0,0.00039999,31]
[422386236,1778919201000,-300.0,0.00039726,120]
[422386233,1778919201000,-300.0,0.00039726,120]
[422386227,1778919201000,-300.0,0.00039726,120]
[422386232,1778919201000,-300.0,0.00039726,120]
[422386231,1778919201000,-300.0,0.00039726,120]
[422386230,1778919201000,-300.0,0.00039726,120]
[422386228,1778919201000,-300.0,0.00039726,120]
[422386229,1778919201000,-300.0,0.00039726,120]
[422386241,1778919201000,-500.0,0.00039999,31]
[422386235,1778919201000,-300.0,0.00039726,120]
[422386240,1778919201000,-500.0,0.00039999,31]
[422386242,1778919201000,-500.0,0.00039999,31]
[422386243,1778919201000,-500.0,0.00039999,31]
[422386258,1778919201000,-500.0,0.00039999,31]
[422386257,1778919201000,-402.81573525,0.00039999,31]
[422386254,1778919201000,-500.0,0.00039999,31]
[422386255,1778919201000,-500.0,0.00039999,31]
[422386253,1778919201000,-500.0,0.00039999,31]
[422386252,1778919201000,-500.0,0.00039999,31]
[422386251,1778919201000,-500.0,0.00039999,31]
[422386256,1778919201000,-500.0,0.00039999,31]
[422386250,1778919201000,-500.0,0.00039999,31]
[422386248,1778919201000,-524.76184752,0.00039999,31]
[422386247,1778919201000,-500.0,0.00039999,31]
[422386246,1778919201000,-500.0,0.00039999,31]
[422386244,1778919201000,-500.0,0.00039999,31]
[422386245,1778919201000,-500.0,0.00039999,31]
[422386249,1778919201000,-614.23970583,0.00039999,31]
[422386272,1778919202000,-225.91049778,0.00041,31]
[422386270,1778919202000,-12584.90825642,0.00041,120]
[422386268,1778919202000,-517.0,0.00041,30]
[422386265,1778919202000,-1000000.0,0.00041,120]
[422386267,1778919202000,-51181.59421768,0.00041,90]
[422386263,1778919202000,-1000.0,0.00040999,120]
[422386264,1778919202000,-257527.56335733,0.00041,120]
[422386262,1778919202000,-1299.31,0.00040919,30]
[422386259,1778919202000,-500.0,0.00039999,31]
[422386261,1778919202000,-1745.19,0.00040919,30]
[422386260,1778919202000,-405.46,0.00040919,30]
[422386271,1778919202000,-20596.5398415,0.00041,120]
[422386266,1778919202000,-1000000.0,0.00041,120]
[422386273,1778919202000,-329400.74712172,0.00041,120]
[422386269,1778919202000,-958.6619002,0.00041,120]
[422386277,1778919202000,-1000000.0,0.00041,120]
[422386274,1778919202000,-34932.37,0.00041,120]
[422386289,1778919202000,-1000000.0,0.00041,120]
[422386287,1778919202000,-1008.82921895,0.00041,120]
[422386288,1778919202000,-150.0,0.00041,120]
[422386285,1778919202000,-1000000.0,0.00041,120]
[422386284,1778919202000,-1000000.0,0.00041,120]
[422386283,1778919202000,-1000000.0,0.00041,120]
[422386286,1778919202000,-1000000.0,0.00041,120]
[422386281,1778919202000,-1000000.0,0.00041,120]
[422386280,1778919202000,-1000000.0,0.00041,120]
[422386279,1778919202000,-1000000.0,0.00041,120]
[422386278,1778919202000,-1000000.0,0.00041,120]
[422386276,1778919202000,-1000000.0,0.00041,120]
[422386275,1778919202000,-1000000.0,0.00041,120]
[422386282,1778919202000,-1000000.0,0.00041,120]
[422386300,1778919203000,-119364.48865862,0.00041,30]
[422386305,1778919203000,-4258.03725397,0.00041,120]
[422386304,1778919203000,-201.30068522,0.00041,120]
[422386303,1778919203000,-150.0,0.00041,120]
[422386301,1778919203000,-366.28819224,0.00041,30]
[422386302,1778919203000,-3240.63339427,0.00041,30]
[422386298,1778919203000,-1080.06014102,0.00041,120]
[422386292,1778919203000,-214022.0,0.00041,120]
[422386297,1778919203000,-344.61416074,0.00041,30]
[422386296,1778919203000,-1123.24028552,0.00041,120]
[422386295,1778919203000,-106415.23,0.00041,120]
[422386294,1778919203000,-487580.62,0.00041,120]
[422386290,1778919203000,-352.53,0.00041,120]
[422386293,1778919203000,-1530.0,0.00041,120]
[422386291,1778919203000,-241.23187679,0.00041,30]
[422386299,1778919203000,-119364.48865862,0.00041,30]
[422386308,1778919203000,-590.0,0.00041,60]
[422386306,1778919203000,-6321.71774242,0.00041,120]
[422386310,1778919203000,-250.0,0.00041004,88]
[422386307,1778919203000,-888.0,0.00041,60]
[422386326,1778919203000,-250.0,0.0004105,30]
[422386324,1778919203000,-250.0,0.00041041,89]
[422386325,1778919203000,-250.0,0.0004105,30]
[422386322,1778919203000,-150.0,0.00041041,120]
[422386320,1778919203000,-1450.4,0.00041041,120]
[422386321,1778919203000,-150.0,0.00041041,120]
[422386318,1778919203000,-510.8831847,0.00041025,120]
[422386323,1778919203000,-165.82152259,0.00041041,120]
[422386319,1778919203000,-273.95,0.0004104,120]
[422386317,1778919203000,-216.84911653,0.00041025,120]
[422386311,1778919203000,-339.04572712,0.00041007,60]
[422386314,1778919203000,-469.95552046,0.00041014,120]
[422386313,1778919203000,-473.17270532,0.00041014,120]
[422386309,1778919203000,-3015.0,0.00041,60]
[422386312,1778919203000,-470.77498212,0.00041014,120]
[422386316,1778919203000,-211.97727187,0.00041025,120]
[422386315,1778919203000,-250.0,0.00041018,88]
[422386335,1778919204000,-1185.0,0.0004105,120]
[422386342,1778919204000,-340.0,0.00041058,120]
[422386341,1778919204000,-1821.0,0.00041058,120]
[422386339,1778919204000,-50000.0,0.00041052,68]
[422386340,1778919204000,-50000.0,0.00041052,69]
[422386337,1778919204000,-530.0,0.0004105,120]
[422386338,1778919204000,-225.410502,0.0004105,54]
[422386336,1778919204000,-953.0,0.0004105,120]
[422386328,1778919204000,-210.0,0.0004105,120]
[422386344,1778919204000,-1000.0,0.00041061,120]
[422386331,1778919204000,-5501.0,0.0004105,120]
[422386332,1778919204000,-888.0,0.0004105,120]
[422386334,1778919204000,-2311.0,0.0004105,120]
[422386330,1778919204000,-5246.0,0.0004105,120]
[422386329,1778919204000,-557.0,0.0004105,120]
[422386327,1778919204000,-850.0,0.0004105,120]
[422386333,1778919204000,-989.0,0.0004105,120]
[422386343,1778919204000,-250.0,0.0004106,89]
[422386356,1778919204000,-1000.0,0.00041061,120]
[422386347,1778919204000,-1000.0,0.00041061,120]
[422386345,1778919204000,-1000.0,0.00041061,120]
[422386363,1778919204000,-1000.0,0.00041061,120]
[422386361,1778919204000,-1000.0,0.00041061,120]
[422386360,1778919204000,-1000.0,0.00041061,120]
[422386359,1778919204000,-1000.0,0.00041061,120]
[422386357,1778919204000,-1000.0,0.00041061,120]
[422386358,1778919204000,-1000.0,0.00041061,120]
[422386354,1778919204000,-1000.0,0.00041061,120]
[422386362,1778919204000,-1000.0,0.00041061,120]
[422386350,1778919204000,-1000.0,0.00041061,120]
[422386352,1778919204000,-1000.0,0.00041061,120]
[422386353,1778919204000,-1000.0,0.00041061,120]
[422386351,1778919204000,-1000.0,0.00041061,120]
[422386349,1778919204000,-1000.0,0.00041061,120]
[422386348,1778919204000,-1000.0,0.00041061,120]
[422386346,1778919204000,-1000.0,0.00041061,120]
[422386355,1778919204000,-1000.0,0.00041061,120]
[422386376,1778919205000,-265.13597358,0.00041061,120]
[422386374,1778919205000,-1000.0,0.00041061,120]
[422386373,1778919205000,-1000.0,0.00041061,120]
[422386371,1778919205000,-1000.0,0.00041061,120]
[422386370,1778919205000,-1000.0,0.00041061,120]
[422386366,1778919205000,-1000.0,0.00041061,120]
[422386369,1778919205000,-1000.0,0.00041061,120]
[422386367,1778919205000,-1000.0,0.00041061,120]
[422386365,1778919205000,-1000.0,0.00041061,120]
[422386364,1778919205000,-1000.0,0.00041061,120]
[422386375,1778919205000,-1000.0,0.00041061,120]
[422386368,1778919205000,-1000.0,0.00041061,120]
[422386378,1778919205000,-500.0,0.00041061,120]
[422386372,1778919205000,-1000.0,0.00041061,120]
[422386380,1778919205000,-500.0,0.00041061,120]
[422386377,1778919205000,-782.85402082,0.00041061,120]
[422386391,1778919205000,-500.0,0.00041061,120]
[422386389,1778919205000,-261.89321068,0.00041061,120]
[422386386,1778919205000,-500.0,0.00041061,120]
[422386387,1778919205000,-242.10534055,0.00041061,120]
[422386385,1778919205000,-500.0,0.00041061,120]
[422386388,1778919205000,-500.0,0.00041061,120]
[422386383,1778919205000,-500.0,0.00041061,120]
[422386382,1778919205000,-500.0,0.00041061,120]
[422386390,1778919205000,-500.0,0.00041061,120]
[422386381,1778919205000,-500.0,0.00041061,120]
[422386379,1778919205000,-500.0,0.00041061,120]
[422386384,1778919205000,-500.0,0.00041061,120]
[422386398,1778919206000,-331.22492509,0.00041061,120]
[422386392,1778919206000,-500.0,0.00041061,120]
[422386394,1778919206000,-500.0,0.00041061,120]
[422386393,1778919206000,-500.0,0.00041061,120]
[422386395,1778919206000,-500.0,0.00041061,120]
[422386396,1778919206000,-500.0,0.00041061,120]
[422386397,1778919206000,-500.0,0.00041061,120]
[422386399,1778919206000,-431.68887001,0.00041061,120]
[422386403,1778919206000,-50000.0,0.00041061,63]
[422386401,1778919206000,-50000.0,0.00041061,61]
[422386402,1778919206000,-50000.0,0.00041061,62]
[422386404,1778919206000,-50000.0,0.00041061,64]
[422386405,1778919206000,-50000.0,0.00041061,65]
[422386406,1778919206000,-50000.0,0.00041061,66]
[422386408,1778919206000,-244.84432703,0.00041061,120]
[422386407,1778919206000,-50000.0,0.00041061,67]
[422386409,1778919206000,-245.04854329,0.00041061,120]
[422386400,1778919206000,-50000.0,0.00041061,60]
[422386415,1778919208000,-500.0,0.00041095,120]
[422386414,1778919208000,-358.07,0.00041087,30]
[422386412,1778919208000,-367.91483202,0.00041085,120]
[422386416,1778919208000,-500.0,0.00041095,120]
[422386410,1778919208000,-305.00287031,0.00041062,120]
[422386411,1778919208000,-329.98140753,0.00041069,60]
[422386413,1778919208000,-300.0,0.00041087,30]
[422386417,1778919208000,-500.0,0.00041095,120]
[422386427,1778919208000,-500.0,0.00041095,120]
[422386420,1778919208000,-500.0,0.00041095,120]
[422386419,1778919208000,-500.0,0.00041095,120]
[422386422,1778919208000,-500.0,0.00041095,120]
[422386421,1778919208000,-500.0,0.00041095,120]
[422386424,1778919208000,-500.0,0.00041095,120]
[422386423,1778919208000,-500.0,0.00041095,120]
[422386425,1778919208000,-500.0,0.00041095,120]
[422386426,1778919208000,-500.0,0.00041095,120]
[422386418,1778919208000,-500.0,0.00041095,120]
[422386440,1778919209000,-500.0,0.00041095,120]
[422386436,1778919209000,-500.0,0.00041095,120]
[422386439,1778919209000,-500.0,0.00041095,120]
[422386438,1778919209000,-500.0,0.00041095,120]
[422386437,1778919209000,-500.0,0.00041095,120]
[422386433,1778919209000,-500.0,0.00041095,120]
[422386431,1778919209000,-500.0,0.00041095,120]
[422386434,1778919209000,-500.0,0.00041095,120]
[422386432,1778919209000,-500.0,0.00041095,120]
[422386442,1778919209000,-500.0,0.00041095,120]
[422386430,1778919209000,-500.0,0.00041095,120]
[422386429,1778919209000,-500.0,0.00041095,120]
[422386428,1778919209000,-500.0,0.00041095,120]
[422386435,1778919209000,-500.0,0.00041095,120]
[422386444,1778919209000,-500.0,0.00041095,120]
[422386441,1778919209000,-500.0,0.00041095,120]
[422386445,1778919209000,-500.0,0.00041095,120]
[422386443,1778919209000,-500.0,0.00041095,120]
[422386459,1778919209000,-500.0,0.00041095,120]
[422386458,1778919209000,-500.0,0.00041095,120]
[422386456,1778919209000,-500.0,0.00041095,120]
[422386457,1778919209000,-500.0,0.00041095,120]
[422386455,1778919209000,-500.0,0.00041095,120]
[422386453,1778919209000,-500.0,0.00041095,120]
[422386460,1778919209000,-500.0,0.00041095,120]
[422386452,1778919209000,-500.0,0.00041095,120]
[422386450,1778919209000,-500.0,0.00041095,120]
[422386451,1778919209000,-500.0,0.00041095,120]
[422386449,1778919209000,-500.0,0.00041095,120]
[422386448,1778919209000,-500.0,0.00041095,120]
[422386446,1778919209000,-500.0,0.00041095,120]
[422386447,1778919209000,-500.0,0.00041095,120]
[422386454,1778919209000,-500.0,0.00041095,120]
[422386475,1778919210000,-500.0,0.00041095,120]
[422386474,1778919210000,-500.0,0.00041095,120]
[422386470,1778919210000,-500.0,0.00041095,120]
[422386471,1778919210000,-500.0,0.00041095,120]
[422386472,1778919210000,-500.0,0.00041095,120]
[422386468,1778919210000,-500.0,0.00041095,120]
[422386465,1778919210000,-500.0,0.00041095,120]
[422386469,1778919210000,-500.0,0.00041095,120]
[422386463,1778919210000,-500.0,0.00041095,120]
[422386464,1778919210000,-500.0,0.00041095,120]
[422386461,1778919210000,-500.0,0.00041095,120]
[422386462,1778919210000,-500.0,0.00041095,120]
[422386473,1778919210000,-500.0,0.00041095,120]
[422386466,1778919210000,-500.0,0.00041095,120]
[422386477,1778919210000,-500.0,0.00041095,120]
[422386467,1778919210000,-500.0,0.00041095,120]
[422386476,1778919210000,-500.0,0.00041095,120]
[422386478,1778919210000,-500.0,0.00041095,120]
[422386491,1778919210000,-500.0,0.00041095,120]
[422386490,1778919210000,-500.0,0.00041095,120]
[422386489,1778919210000,-500.0,0.00041095,120]
[422386487,1778919210000,-500.0,0.00041095,120]
[422386493,1778919210000,-500.0,0.00041095,120]
[422386488,1778919210000,-500.0,0.00041095,120]
[422386492,1778919210000,-500.0,0.00041095,120]
[422386483,1778919210000,-500.0,0.00041095,120]
[422386484,1778919210000,-500.0,0.00041095,120]
[422386482,1778919210000,-500.0,0.00041095,120]
[422386481,1778919210000,-500.0,0.00041095,120]
[422386479,1778919210000,-500.0,0.00041095,120]
[422386480,1778919210000,-500.0,0.00041095,120]
[422386486,1778919210000,-500.0,0.00041095,120]
[422386503,1778919211000,-500.0,0.00041095,120]
[422386505,1778919211000,-500.0,0.00041095,120]
[422386504,1778919211000,-500.0,0.00041095,120]
[422386502,1778919211000,-500.0,0.00041095,120]
[422386499,1778919211000,-500.0,0.00041095,120]
[422386501,1778919211000,-500.0,0.00041095,120]
[422386497,1778919211000,-500.0,0.00041095,120]
[422386498,1778919211000,-500.0,0.00041095,120]
[422386496,1778919211000,-500.0,0.00041095,120]
[422386495,1778919211000,-500.0,0.00041095,120]
[422386494,1778919211000,-500.0,0.00041095,120]
[422386506,1778919211000,-500.0,0.00041095,120]
[422386500,1778919211000,-500.0,0.00041095,120]
[422386507,1778919211000,-500.0,0.00041095,120]
[422386508,1778919211000,-500.0,0.00041095,120]
[422386509,1778919211000,-500.0,0.00041095,120]
[422386521,1778919211000,-2000.0,0.00041095,120]
[422386519,1778919211000,-2000.0,0.00041095,120]
[422386520,1778919211000,-2000.0,0.00041095,120]
[422386516,1778919211000,-231.21358513,0.00041095,120]
[422386518,1778919211000,-2000.0,0.00041095,120]
[422386517,1778919211000,-2000.0,0.00041095,120]
[422386522,1778919211000,-2000.0,0.00041095,120]
[422386513,1778919211000,-500.0,0.00041095,120]
[422386514,1778919211000,-500.0,0.00041095,120]
[422386512,1778919211000,-500.0,0.00041095,120]
[422386511,1778919211000,-500.0,0.00041095,120]
[422386510,1778919211000,-500.0,0.00041095,120]
[422386515,1778919211000,-492.09271175,0.00041095,120]
[422386535,1778919212000,-2000.0,0.00041095,120]
[422386533,1778919212000,-2000.0,0.00041095,120]
[422386532,1778919212000,-2000.0,0.00041095,120]
[422386531,1778919212000,-2000.0,0.00041095,120]
[422386530,1778919212000,-2000.0,0.00041095,120]
[422386528,1778919212000,-2000.0,0.00041095,120]
[422386527,1778919212000,-2000.0,0.00041095,120]
[422386525,1778919212000,-2000.0,0.00041095,120]
[422386526,1778919212000,-2000.0,0.00041095,120]
[422386524,1778919212000,-2000.0,0.00041095,120]
[422386523,1778919212000,-2000.0,0.00041095,120]
[422386534,1778919212000,-2000.0,0.00041095,120]
[422386529,1778919212000,-2000.0,0.00041095,120]
[422386538,1778919212000,-2000.0,0.00041095,120]
[422386552,1778919212000,-2000.0,0.00041095,120]
[422386537,1778919212000,-2000.0,0.00041095,120]
[422386536,1778919212000,-2000.0,0.00041095,120]
[422386550,1778919212000,-2000.0,0.00041095,120]
[422386549,1778919212000,-2000.0,0.00041095,120]
[422386551,1778919212000,-2000.0,0.00041095,120]
[422386546,1778919212000,-2000.0,0.00041095,120]
[422386547,1778919212000,-2000.0,0.00041095,120]
[422386548,1778919212000,-2000.0,0.00041095,120]
[422386544,1778919212000,-2000.0,0.00041095,120]
[422386545,1778919212000,-2000.0,0.00041095,120]
[422386542,1778919212000,-2000.0,0.00041095,120]
[422386539,1778919212000,-2000.0,0.00041095,120]
[422386541,1778919212000,-2000.0,0.00041095,120]
[422386540,1778919212000,-2000.0,0.00041095,120]
[422386543,1778919212000,-2000.0,0.00041095,120]
[422386560,1778919213000,-2000.0,0.00041095,120]
[422386564,1778919213000,-2000.0,0.00041095,120]
[422386562,1778919213000,-2000.0,0.00041095,120]
[422386563,1778919213000,-2000.0,0.00041095,120]
[422386561,1778919213000,-2000.0,0.00041095,120]
[422386559,1778919213000,-2000.0,0.00041095,120]
[422386565,1778919213000,-2000.0,0.00041095,120]
[422386557,1778919213000,-2000.0,0.00041095,120]
[422386556,1778919213000,-2000.0,0.00041095,120]
[422386555,1778919213000,-2000.0,0.00041095,120]
[422386553,1778919213000,-2000.0,0.00041095,120]
[422386554,1778919213000,-2000.0,0.00041095,120]
[422386558,1778919213000,-2000.0,0.00041095,120]
[422386566,1778919213000,-2000.0,0.00041095,120]
[422386582,1778919213000,-2000.0,0.00041095,120]
[422386568,1778919213000,-2000.0,0.00041095,120]
[422386580,1778919213000,-2000.0,0.00041095,120]
[422386581,1778919213000,-2000.0,0.00041095,120]
[422386578,1778919213000,-2000.0,0.00041095,120]
[422386579,1778919213000,-2000.0,0.00041095,120]
[422386576,1778919213000,-2000.0,0.00041095,120]
[422386577,1778919213000,-2000.0,0.00041095,120]
[422386567,1778919213000,-2000.0,0.00041095,120]
[422386574,1778919213000,-2000.0,0.00041095,120]
[422386573,1778919213000,-2000.0,0.00041095,120]
[422386570,1778919213000,-2000.0,0.00041095,120]
[422386572,1778919213000,-2000.0,0.00041095,120]
[422386571,1778919213000,-2000.0,0.00041095,120]
[422386569,1778919213000,-2000.0,0.00041095,120]
[422386575,1778919213000,-2000.0,0.00041095,120]
[422386595,1778919214000,-2000.0,0.00041095,120]
[422386597,1778919214000,-2000.0,0.00041095,120]
[422386593,1778919214000,-2000.0,0.00041095,120]
[422386594,1778919214000,-2000.0,0.00041095,120]
[422386592,1778919214000,-2000.0,0.00041095,120]
[422386591,1778919214000,-2000.0,0.00041095,120]
[422386586,1778919214000,-2000.0,0.00041095,120]